lending/lending_fUSD_20260223
["ID","MTS","AMOUNT","RATE_DAILY","PERIOD"]
[406364605,1771805431997,-470.9133467,0.00015528,2]
[406364606,1771805432009,-529.0866533,0.00015528,2]
[406364607,1771805432020,-250.0,0.00015577,2]
[406364608,1771805432029,-96.4033467,0.00015626,2]
[406364609,1771805432053,-203.5966533,0.00015626,2]
[406364610,1771805432062,-300.0,0.00015626,2]
[406364611,1771805432072,-366.13262819,0.00015627,2]
[406364612,1771805432110,-133.86737181,0.00015627,2]
[406364613,1771805432119,-500.0,0.00015627,2]
[406364614,1771805432129,-500.0,0.00015627,2]
[406364615,1771805432138,-500.0,0.00015627,2]
[406364616,1771805432148,-500.0,0.00015627,2]
[406364617,1771805432157,-500.0,0.00015627,2]
[406364618,1771805432167,-500.0,0.00015627,2]
[406364619,1771805432176,-500.0,0.00015627,2]
[406364620,1771805432186,-500.0,0.00015627,2]
[406364621,1771805432195,-500.0,0.00015627,2]
[406364622,1771805432205,-500.0,0.00015627,2]
[406364623,1771805432214,-500.0,0.00015627,2]
[406364625,1771805432224,-500.0,0.00015627,2]
[406364627,1771805432233,-500.0,0.00015627,2]
[406364629,1771805432242,-150.0,0.00016062,30]
[406364631,1771805432251,-250.0,0.00016751,2]
[406364633,1771805432260,-250.0,0.00017081,2]
[406364634,1771805432271,-581.75029072,0.00017081,2]
[406364637,1771805432280,-500.0,0.0001796,2]
[406364639,1771805432290,-500.0,0.00017994,2]
[406364640,1771805432299,-500.0,0.00017999,2]
[406364641,1771805432309,-500.0,0.00017999,2]
[406364642,1771805432318,-171.15,0.00017999,2]
[406364643,1771805432327,-500.0,0.00017999,2]
[406364644,1771805432337,-500.0,0.00017999,2]
[406364645,1771805432346,-500.0,0.00017999,2]
[406364646,1771805432356,-500.0,0.00017999,2]
[406364647,1771805432366,-225.18,0.00017999,2]
[406364648,1771805432375,-999.99,0.00017999,2]
[406364649,1771805432384,-508.67,0.00017999,2]
[406364650,1771805432393,-1204.72,0.00017999,2]
[406364651,1771805432402,-3485.81,0.00017999,2]
[406364652,1771805432411,-150.99,0.00017999,2]
[406364653,1771805432420,-1920.36,0.00017999,2]
[406364654,1771805432429,-9999.99,0.00017999,2]
[406364655,1771805432439,-173.78509278,0.00018342,2]
[406364656,1771805432449,-200.0,0.00019082,2]
[406364657,1771805432459,-572.34,0.00019744,2]
[406364658,1771805432468,-250.0,0.00020518,2]
[406364659,1771805432477,-150.0,0.00021439,2]
[406364660,1771805432487,-1000.0,0.00021761,2]
[406364661,1771805432496,-164.26,0.00021936,30]
[406364662,1771805432506,-3418.23,0.00022521,2]
[406364663,1771805432515,-164.32049903,0.00022699,2]
[406364664,1771805432526,-511.26651481,0.00022699,2]
[406364665,1771805432536,-24824.87593428,0.000227,2]
[406364666,1771805432549,-1594.4736441,0.000227,2]
[406364667,1771805432560,-772.22552744,0.000227,2]
[406364669,1771805438269,-500.0,0.00022699,2]
[406364670,1771805438280,-248.23983097,0.00022699,2]
[406364671,1771805438290,-500.0,0.00022699,2]
[406364672,1771805438300,-500.0,0.00022699,2]
[406364673,1771805438309,-169.90878567,0.00022699,2]
[406364674,1771805438319,-500.0,0.00022699,2]
[406364675,1771805438330,-500.0,0.00022699,2]
[406364676,1771805438340,-500.0,0.00022699,2]
[406364677,1771805438351,-500.0,0.00022699,2]
[406364678,1771805438362,-500.0,0.00022699,2]
[406364679,1771805438371,-500.0,0.00022699,2]
[406364680,1771805438383,-500.0,0.00022699,2]
[406364681,1771805438393,-500.0,0.00022699,2]
[406364682,1771805438402,-500.0,0.00022699,2]
[406364683,1771805438412,-500.0,0.00022699,2]
[406364684,1771805438424,-500.0,0.00022699,2]
[406364685,1771805438436,-500.0,0.00022699,2]
[406364686,1771805438446,-500.0,0.00022699,2]
[406364687,1771805438457,-500.0,0.00022699,2]
[406364688,1771805438470,-500.0,0.00022699,2]
[406364689,1771805438480,-500.0,0.00022699,2]
[406364690,1771805438491,-500.0,0.00022699,2]
[406364691,1771805438500,-500.0,0.00022699,2]
[406364692,1771805438510,-500.0,0.00022699,2]
[406364693,1771805438520,-500.0,0.00022699,2]
[406364695,1771805438530,-500.0,0.00022699,2]
[406364697,1771805438543,-500.0,0.00022699,2]
[406364698,1771805438552,-500.0,0.00022699,2]
[406364700,1771805438562,-500.0,0.00022699,2]
[406364702,1771805438572,-500.0,0.00022699,2]
[406364704,1771805438581,-1259.78921164,0.000227,2]
[406364770,1771805440280,-3749.88529281,0.000227,2]
[406364771,1771805440292,-11780.75131357,0.000227,2]
[406364772,1771805440303,-3456017.99907616,0.000227,2]
[406364773,1771805440313,-527.29534366,0.00022799,2]
[406364774,1771805440322,-160.0,0.00023,2]
[406364775,1771805440331,-64782.8833,0.00023104,2]
[406364776,1771805440340,-33108.70401085,0.00023643,2]
[406364777,1771805440349,-1000.0,0.00024481,2]
[406364778,1771805440358,-150.0,0.00024658,2]
[406364779,1771805440368,-1282.6,0.00025561,2]
[406364780,1771805440377,-150.0,0.0002589,2]
[406364781,1771805440387,-511.26651479,0.0002593,2]
[406364782,1771805440396,-1000.0,0.00026253,2]
[406364783,1771805440406,-856.96,0.00026368,2]
[406364784,1771805440415,-176.3781679,0.00027106,2]
[406364785,1771805440426,-150.0,0.00027185,2]
[406364786,1771805440435,-1000.0,0.00027202,2]
[406364787,1771805440444,-163.96,0.00027507,2]
[406364788,1771805440454,-150.0,0.00028544,2]
[406364789,1771805440463,-163.96,0.00028817,2]
[406364790,1771805440472,-511.26651479,0.0002916,2]
[406364791,1771805440481,-1000.0,0.00029922,2]
[406364792,1771805440491,-150.0,0.00029971,2]
[406364793,1771805440500,-1000.0,0.000301,2]
[406364794,1771805440509,-163.96,0.00030127,2]
[406364795,1771805440518,-233.4461539,0.00030394,120]
[406364796,1771805440528,-164.26,0.00030498,30]
[406364797,1771805440537,-163.29425341,0.00030633,2]
[406364798,1771805440546,-162.75273669,0.00030633,2]
[406364799,1771805440556,-2500.0,0.00031337,2]
[406364800,1771805440565,-163.96,0.00031437,2]
[406364801,1771805440578,-150.0,0.0003147,2]
[406364802,1771805440587,-572.34,0.00031525,2]
[406364803,1771805440596,-511.26651479,0.00032391,2]
[406364804,1771805440605,-1000.0,0.00032642,2]
[406364805,1771805440615,-163.96,0.00032747,2]
[406364806,1771805440624,-150.0,0.00033043,2]
[406364807,1771805440633,-212.91,0.000331,2]
[406364808,1771805440643,-2640.62,0.000331,14]
[406364809,1771805440652,-449.0246996,0.00033276,2]
[406364810,1771805440662,-2000.0,0.000336,2]
[406364811,1771805440671,-1000.0,0.000338,2]
[406364812,1771805440680,-527.29534364,0.00034056,2]
[406364813,1771805440690,-163.96,0.00034057,2]
[406364814,1771805440699,-150.0,0.00034696,2]
[406364815,1771805440709,-163.96,0.00035367,2]
[406364816,1771805440719,-1000.0,0.00035412,2]
[406364817,1771805440728,-1000.0,0.00035412,2]
[406364818,1771805440737,-1000.0,0.00035412,2]
[406364819,1771805440747,-1000.0,0.00035412,2]
[406364820,1771805440756,-1000.0,0.00035412,2]
[406364821,1771805440766,-511.26651479,0.00035621,2]
[406364822,1771805440775,-152.0,0.0003563,3]
[406364823,1771805440784,-261.8038511,0.0003605,2]
[406364824,1771805440795,-169.0,0.00036406,2]
[406364825,1771805440804,-150.0,0.0003643,2]
[406364826,1771805440813,-163.96,0.00036677,2]
[406364827,1771805440823,-150.0,0.00036921,2]
[406364828,1771805440835,-200.0,0.00036921,2]
[406364829,1771805440845,-841.015,0.00037238,47]
[406364830,1771805440854,-2000.0,0.000373,2]
[406364831,1771805440863,-5531.0,0.000374,5]
[406364832,1771805440872,-2640.62,0.000376,14]
[406364833,1771805440882,-5271.15951701,0.00037809,2]
[406364834,1771805440891,-169.0,0.00037908,2]
[406364835,1771805440901,-4375.42,0.00038,60]
[406364836,1771805440910,-558.95850289,0.00038088,30]
[406364837,1771805440919,-353118.80975442,0.000381,33]
[406364838,1771805440928,-212.91,0.000381,2]
[406364839,1771805440938,-150.0,0.00038252,2]
[406364840,1771805440947,-25000.0,0.00038481,2]
[406364841,1771805440957,-991.0,0.00038769,30]
[406364842,1771805440966,-513.0,0.00038771,30]
[406364843,1771805440975,-511.26651479,0.00038852,2]
[406364844,1771805440984,-2016.9014,0.00038888,30]
[406364845,1771805440993,-164.26,0.0003906,30]
[406364846,1771805441002,-169.0,0.00039411,2]
[406364847,1771805441011,-150.0,0.00039663,2]
[406364848,1771805441020,-150.0,0.00039663,2]
[406364849,1771805441029,-150.0,0.00039663,2]
[406364850,1771805441039,-618.0,0.00039663,2]
[406364851,1771805441048,-2258.616,0.00039663,2]
[406364852,1771805441058,-1276.0,0.00039663,2]
[406364853,1771805441076,-1210.0,0.00039663,2]
[406364854,1771805441096,-2454.0,0.00039663,2]
[406364855,1771805441108,-5977.0,0.00039663,2]
[406364856,1771805441118,-413.0,0.00039663,2]
[406364858,1771805441127,-150.0,0.000399,30]
[406364860,1771805441136,-150.0,0.000399,30]
[406364862,1771805441145,-150.0,0.00039921,2]
[406364864,1771805441155,-200.0,0.0004,120]
[406364866,1771805441164,-9881.91,0.0004,120]
[406364868,1771805441173,-9999.99,0.0004,120]
[406364871,1771805441186,-10000.0,0.0004,120]
[406364873,1771805441196,-162.0,0.0004,8]
[406364875,1771805441207,-150.0,0.00040165,2]
[406364877,1771805441218,-150.0,0.00040822,60]
[406364879,1771805441229,-150.0,0.00040822,60]
[406364880,1771805441240,-150.0,0.00040822,60]
[406364881,1771805441251,-150.0,0.00040822,60]
[406364882,1771805441262,-150.0,0.00040822,60]
[406364883,1771805441272,-150.0,0.00040822,60]
[406364884,1771805441283,-150.0,0.00040822,60]
[406364885,1771805441293,-150.0,0.00040822,60]
[406364886,1771805441303,-150.0,0.00040877,60]
[406364887,1771805441312,-150.0,0.00040877,60]
[406364888,1771805441322,-150.0,0.00040877,60]
[406364889,1771805441332,-150.0,0.00040877,60]
[406364890,1771805441343,-150.0,0.00040877,60]
[406364891,1771805441358,-150.0,0.00040877,60]
[406364892,1771805441368,-306.05328416,0.00040886,2]
[406364893,1771805441379,-300.0,0.00040886,2]
[406364894,1771805441390,-306.05328416,0.00040886,2]
[406364895,1771805441400,-300.0,0.00040886,2]
[406364896,1771805441410,-169.0,0.00040913,2]
[406364897,1771805441420,-150.0,0.00040932,60]
[406364898,1771805441431,-150.0,0.00040932,60]
[406364899,1771805441442,-150.0,0.00040932,60]
[406364900,1771805441451,-150.0,0.00040932,60]
[406364901,1771805441461,-200.0,0.00040932,60]
[406364902,1771805441472,-200.0,0.00040932,60]
[406364903,1771805441482,-78177.0,0.0004095,60]
[406364904,1771805441493,-150.0,0.00040986,60]
[406364905,1771805441503,-150.0,0.00040986,60]
[406364906,1771805441514,-150.0,0.00040986,60]
[406364907,1771805441526,-500.0,0.00040999,8]
[406364908,1771805441536,-500.0,0.00040999,8]
[406364909,1771805441546,-500.0,0.00040999,8]
[406364910,1771805441557,-500.0,0.00040999,8]
[406364911,1771805441567,-2000.0,0.00041,2]
[406364912,1771805441577,-10000.0,0.00041,120]
[406364913,1771805441588,-185.7342369,0.00041041,60]
[406364914,1771805441599,-150.0,0.00041041,60]
[406364915,1771805441609,-150.0,0.00041041,60]
[406364916,1771805441619,-2014.60439415,0.00041096,10]
[406364917,1771805441629,-250.0,0.00041096,60]
[406364918,1771805441639,-250.0,0.00041096,60]
[406364919,1771805441648,-169.289495,0.00041096,120]
[406364920,1771805441658,-2640.62,0.000411,14]
[406364921,1771805441669,-160.38,0.00041183,2]
[406364922,1771805441680,-152.0,0.00041928,4]
[406364923,1771805441690,-200.0,0.00041994,8]
[406364924,1771805441701,-200.0,0.00041994,8]
[406364925,1771805441711,-200.0,0.00041994,8]
[406364926,1771805441722,-200.0,0.00041994,8]
[406364927,1771805441732,-200.0,0.00041994,8]
[406364928,1771805441743,-500.0,0.00041994,7]
[406364929,1771805441753,-500.0,0.00041994,7]
[406364930,1771805441765,-500.0,0.00041994,7]
[406364931,1771805441775,-500.0,0.00041994,7]
[406364932,1771805441786,-500.0,0.00041994,7]
[406364933,1771805441796,-372.93950921,0.00041994,7]
[406364934,1771805441806,-200.0,0.00041994,8]
[406364935,1771805441817,-10000.0,0.00042,120]
[406364936,1771805441828,-511.26651479,0.00042082,28]
[406364937,1771805441842,-150.0,0.00042173,120]
[406364938,1771805441853,-78177.0,0.000423,60]
[406364939,1771805441865,-169.0,0.00042415,2]
[406364940,1771805441876,-212.91,0.000425,30]
[406364941,1771805441887,-618.0,0.00042663,2]
[406364942,1771805441897,-1276.0,0.00042663,2]
[406364943,1771805441909,-1210.0,0.00042663,2]
[406364944,1771805441920,-2454.0,0.00042663,2]
[406364945,1771805441932,-5977.0,0.00042663,2]
[406364946,1771805441942,-413.0,0.00042663,2]
[406364947,1771805441953,-152.59,0.00042672,120]
[406364948,1771805441964,-224.1001,0.000429,7]
[406364949,1771805441976,-572.34,0.00043306,120]
[406364950,1771805441987,-282.59,0.00043452,120]
[406364951,1771805441998,-78177.0,0.0004365,60]
[406364952,1771805442008,-168.0,0.00043784,2]
[406364953,1771805442019,-150.0,0.000438,30]
[406364954,1771805442029,-1000.0,0.000438,30]
[406364955,1771805442040,-150.0,0.000438,30]
[406364956,1771805442050,-500.0,0.00043813,60]
[406364957,1771805442061,-150.0,0.00044001,120]
[406364958,1771805442073,-1350.80364022,0.00044065,2]
[406364959,1771805442084,-150.0,0.00044281,120]
[406364960,1771805442095,-411.29,0.000443,120]
[406364961,1771805442107,-180.0,0.000444,120]
[406364962,1771805442118,-150.0,0.000444,120]
[406364963,1771805442128,-150.0,0.000444,120]
[406364964,1771805442138,-150.0,0.000444,120]
[406364965,1771805442149,-150.0,0.00044696,120]
[406364966,1771805442159,-2000.0,0.000447,2]
[406364967,1771805442171,-2640.62,0.000447,14]
[406364968,1771805442181,-150.0,0.00044799,120]
[406364969,1771805442191,-2640.62,0.000448,2]
[406364970,1771805442202,-150.0,0.00044851,120]
[406364971,1771805442213,-726.0,0.00044851,30]
[406364972,1771805442224,-500.0,0.00044909,60]
[406364973,1771805442235,-2187.7,0.00044958,2]
[406364974,1771805442247,-78177.0,0.00045,60]
[406364975,1771805442257,-164.0,0.00045,90]
[406364976,1771805442266,-181.0,0.00045,90]
[406364977,1771805442276,-269.82,0.00045,30]
[406364978,1771805442287,-737.0,0.00045035,30]
[406364979,1771805442297,-2187.7,0.00045059,2]
[406364980,1771805442307,-150.0,0.00045065,30]
[406364981,1771805442316,-150.0,0.00045065,30]
[406364982,1771805442326,-150.0,0.00045065,30]
[406364983,1771805442337,-150.0,0.00045065,30]
[406364984,1771805442347,-150.0,0.00045065,30]
[406364985,1771805442357,-150.0,0.00045065,30]
[406364986,1771805442367,-150.0,0.00045065,30]
[406364987,1771805442377,-150.0,0.00045065,30]
[406364988,1771805442387,-150.0,0.00045065,30]
[406364989,1771805442396,-150.0,0.00045065,30]
[406364990,1771805442406,-150.0,0.00045065,30]
[406364991,1771805442417,-150.0,0.00045065,30]
[406364992,1771805442427,-150.0,0.00045065,30]
[406364993,1771805442436,-154.972,0.00045065,30]
[406364994,1771805442448,-150.0,0.00045128,120]
[406364995,1771805442459,-2187.7,0.00045159,2]
[406364996,1771805442470,-500.0,0.00045205,2]
[406364997,1771805442481,-500.0,0.00045205,2]
[406364998,1771805442492,-500.0,0.00045205,2]
[406364999,1771805442504,-500.0,0.00045205,120]
[406365000,1771805442514,-500.0,0.00045205,120]
[406365001,1771805442523,-500.0,0.00045205,120]
[406365002,1771805442533,-500.0,0.00045205,120]
[406365003,1771805442543,-500.0,0.00045205,120]
[406365004,1771805442553,-500.0,0.00045205,120]
[406365005,1771805442562,-500.0,0.00045205,120]
[406365006,1771805442572,-500.0,0.00045205,120]
[406365007,1771805442582,-492.95571742,0.00045205,120]
[406365008,1771805442591,-500.0,0.00045205,120]
[406365009,1771805442601,-500.0,0.00045205,120]
[406365010,1771805442611,-500.0,0.00045205,120]
[406365011,1771805442621,-500.0,0.00045205,120]
[406365012,1771805442632,-500.0,0.00045205,120]
[406365013,1771805442642,-500.0,0.00045205,120]
[406365014,1771805442653,-500.0,0.00045205,120]
[406365015,1771805442663,-500.0,0.00045205,120]
[406365016,1771805442675,-500.0,0.00045205,120]
[406365017,1771805442686,-500.0,0.00045205,120]
[406365018,1771805442697,-500.0,0.00045205,120]
[406365019,1771805442707,-500.0,0.00045205,120]
[406365020,1771805442717,-500.0,0.00045205,120]
[406365021,1771805442727,-500.0,0.00045205,120]
[406365022,1771805442736,-500.0,0.00045205,120]
[406365023,1771805442746,-500.0,0.00045205,120]
[406365024,1771805442756,-500.0,0.00045205,120]
[406365025,1771805442766,-162.31383058,0.00045205,120]
[406365026,1771805442776,-300.3,0.00045205,120]
[406365027,1771805442786,-500.0,0.00045205,120]
[406365028,1771805442796,-500.0,0.00045205,120]
[406365029,1771805442806,-500.0,0.00045205,120]
[406365030,1771805442816,-500.0,0.00045205,2]
[406365031,1771805442826,-500.0,0.00045205,2]
[406365032,1771805442840,-500.0,0.00045205,2]
[406365033,1771805442849,-500.0,0.00045205,2]
[406365034,1771805442861,-500.0,0.00045205,2]
[406365035,1771805442871,-500.0,0.00045205,2]
[406365036,1771805442881,-500.0,0.00045205,2]
[406365037,1771805442892,-500.0,0.00045205,2]
[406365038,1771805442902,-500.0,0.00045205,2]
[406365039,1771805442912,-500.0,0.00045205,2]
[406365040,1771805442923,-2187.7,0.0004526,2]
[406365041,1771805442933,-150.0,0.000453,62]
[406365042,1771805442943,-527.29534364,0.00045312,2]
[406365043,1771805442954,-164.32049903,0.00045313,15]
[406365044,1771805442964,-511.26651479,0.00045313,28]
[406365045,1771805442975,-482.8456,0.00045357,120]
[406365046,1771805442985,-6094.0,0.00045357,7]
[406365047,1771805442995,-2187.7,0.00045361,2]
[406365048,1771805443005,-150.0,0.00045375,120]
[406365050,1771805443015,-734.0,0.000454,30]
[406365051,1771805443026,-151.0,0.00045409,120]
[406365052,1771805443037,-151.0,0.00045409,120]
[406365053,1771805443047,-20501.64457345,0.00045412,4]
[406365054,1771805443057,-428376.9391602,0.00045412,10]
[406365055,1771805443073,-1297.56,0.00045412,10]
[406365056,1771805443085,-10942.89648548,0.00045412,10]
[406365057,1771805443109,-26117.43658238,0.00045412,10]
[406365058,1771805443124,-6260.77965526,0.00045412,10]
[406365060,1771805443281,-470.0,0.00045065,60]
[406365061,1771805443291,-730.12479506,0.00045412,10]
[406365062,1771805443303,-1335.22,0.00045412,10]
[406365063,1771805443315,-301.0,0.00045412,10]
[406365064,1771805443506,-2310.884199,0.00045412,10]
[406365073,1771805446043,-13179.32666053,0.00045412,10]
[406365074,1771805446055,-505.0,0.00045412,10]
[406365075,1771805446294,-338.08265994,0.00045412,10]
[406365076,1771805446306,-715.85477503,0.00045412,10]
[406365077,1771805446318,-499.72902385,0.00045412,10]
[406365234,1771806632132,-502.0,0.0001521,2]
[406365237,1771806632142,-598.0,0.000162,5]
[406365240,1771806632168,-471.84604647,0.000162,5]
[406365242,1771806632179,-3600.42431067,0.000162,5]
[406365244,1771806632190,-393.653476,0.000162,5]
[406365245,1771806632209,-277.468401,0.000162,5]
[406365246,1771806632336,-6658.50763568,0.000162,5]
[406365249,1771806632346,-300.0,0.00016731,2]
[406365250,1771806632356,-195.0,0.00016731,2]
[406365251,1771806632366,-78405.96782734,0.00017,2]
[406365253,1771806632375,-160.60154512,0.00017,2]
[406365255,1771806632384,-433.59,0.00017669,2]
[406365256,1771806632394,-431.90625867,0.000179,2]
[406365257,1771806632403,-447.35820045,0.000179,2]
[406365258,1771806632413,-164.32049903,0.000179,2]
[406365259,1771806632422,-205.57529524,0.000179,3]
[406365260,1771806632432,-433.59,0.00017963,2]
[406365262,1771806632441,-500.0,0.00017999,2]
[406365264,1771806632450,-593.8194481,0.00017999,2]
[406365266,1771806632460,-312.33573997,0.00017999,2]
[406365268,1771806632470,-857.7484512,0.00017999,2]
[406365270,1771806632479,-500.0,0.00017999,2]
[406365272,1771806632488,-500.0,0.00017999,2]
[406365274,1771806632497,-500.0,0.00017999,2]
[406365276,1771806632507,-500.0,0.00017999,2]
[406365278,1771806632516,-500.0,0.00017999,2]
[406365280,1771806632529,-500.0,0.00017999,2]
[406365282,1771806632539,-857.7484512,0.00017999,2]
[406365283,1771806632548,-500.0,0.00017999,2]
[406365284,1771806632558,-500.0,0.00017999,2]
[406365285,1771806632567,-500.0,0.00017999,2]
[406365286,1771806632577,-500.0,0.00017999,2]
[406365287,1771806632587,-500.0,0.00017999,2]
[406365288,1771806632596,-500.0,0.00017999,2]
[406365289,1771806632605,-500.0,0.00017999,2]
[406365290,1771806632615,-500.0,0.00017999,2]
[406365291,1771806632624,-500.0,0.00017999,2]
[406365292,1771806632633,-500.0,0.00017999,2]
[406365293,1771806632642,-857.7484512,0.00017999,2]
[406365294,1771806632652,-500.0,0.00017999,2]
[406365295,1771806632661,-500.0,0.00017999,2]
[406365296,1771806632670,-500.0,0.00017999,2]
[406365297,1771806632679,-500.0,0.00017999,2]
[406365298,1771806632689,-500.0,0.00017999,2]
[406365299,1771806632698,-876.80952789,0.00017999,2]
[406365300,1771806632707,-876.80952789,0.00017999,2]
[406365301,1771806632717,-500.0,0.00017999,2]
[406365302,1771806632727,-252.17194939,0.00017999,2]
[406365303,1771806632736,-500.0,0.00017999,2]
[406365304,1771806632745,-500.0,0.00017999,2]
[406365305,1771806632755,-500.0,0.00017999,2]
[406365306,1771806632765,-500.0,0.00017999,2]
[406365307,1771806632774,-500.0,0.00017999,2]
[406365308,1771806632783,-500.0,0.00017999,2]
[406365309,1771806632793,-864.72304578,0.00017999,2]
[406365310,1771806632802,-864.72304578,0.00017999,2]
[406365311,1771806632811,-864.72304578,0.00017999,2]
[406365312,1771806632820,-888.97259807,0.00017999,2]
[406365313,1771806632829,-888.97259807,0.00017999,2]
[406365314,1771806632838,-887.82022618,0.00017999,2]
[406365315,1771806632848,-887.82022618,0.00017999,2]
[406365316,1771806632857,-886.41098773,0.00017999,2]
[406365317,1771806632866,-885.40370251,0.00017999,2]
[406365318,1771806632876,-883.94424586,0.00017999,2]
[406365319,1771806632885,-883.94424586,0.00017999,2]
[406365320,1771806632895,-923.37509212,0.00017999,2]
[406365321,1771806632904,-891.15173847,0.00017999,2]
[406365322,1771806632913,-891.15173847,0.00017999,2]
[406365323,1771806632923,-875.9691533,0.00017999,2]
[406365324,1771806632932,-934.36709685,0.00017999,2]
[406365325,1771806632941,-885.42405844,0.00017999,2]
[406365326,1771806632951,-885.42405844,0.00017999,2]
[406365327,1771806632960,-859.38217437,0.00017999,2]
[406365328,1771806632969,-859.38217437,0.00017999,2]
[406365329,1771806632979,-619079.01927914,0.00018,2]
[406365330,1771806632991,-42663.18124815,0.00018,2]
[406365331,1771806633003,-1526.40458596,0.00018,2]
[406365332,1771806633014,-672.09,0.00018,2]
[406365334,1771806638380,-417.00848472,0.00018,2]
[406365335,1771806638393,-434.15793142,0.00018,2]
[406365336,1771806638415,-14592.98583388,0.00018,2]
[406365337,1771806638427,-707.89035768,0.00018,2]
[406365338,1771806638439,-1276.057503,0.00018,2]
[406365339,1771806638451,-404.12556807,0.00018,2]
[406365350,1771806640538,-5201450.59136067,0.00018,2]
[406365351,1771806640730,-564.11572434,0.00018,2]
[406365352,1771806640742,-144545.55778806,0.00018,2]
[406365353,1771806640751,-2220.73980545,0.00018,2]
[406365354,1771806640761,-109790.91786731,0.00018,2]
[406365355,1771806640770,-297245.37668676,0.00018,2]
[406365356,1771806640939,-4865.58111011,0.00018,2]
[406365357,1771806640962,-19436.80445432,0.00018,2]
[406365359,1771806643678,-445.729,0.00018,2]
[406365360,1771806643782,-5465.4512584,0.00018,2]
[406365385,1771806646195,-527.29534366,0.000179,2]
[406365386,1771806646206,-29111.04007049,0.00018,2]
[406365491,1771807831341,-189.03,0.000151,2]
[406365492,1771807831351,-283.56,0.000151,2]
[406365493,1771807831361,-275.0,0.000151,2]
[406365494,1771807831370,-250.0,0.00015105,2]
[406365495,1771807831379,-159.6034,0.0001511,2]
[406365496,1771807831390,-563.0,0.0001521,2]
[406365497,1771807831399,-188.850121,0.00015957,7]
[406365498,1771807831408,-662.0,0.00016,20]
[406365499,1771807831418,-856.96,0.00016322,2]
[406365500,1771807831427,-25000.0,0.00016453,2]
[406365501,1771807831437,-1643.74,0.00016464,2]
[406365502,1771807831448,-187.378,0.00016464,2]
[406365504,1771807831457,-417.0,0.000165,2]
[406365505,1771807831466,-1200.0,0.00016509,2]
[406365507,1771807831475,-391.43842542,0.0001651,2]
[406365509,1771807831485,-151.0,0.00016597,2]
[406365511,1771807831494,-151.0,0.00016597,2]
[406365513,1771807831507,-151.0,0.00016597,2]
[406365515,1771807831517,-300.0,0.00016598,2]
[406365517,1771807831526,-415.67361367,0.00016599,2]
[406365518,1771807831536,-218.63501798,0.00016599,2]
[406365520,1771807831547,-500.0,0.00016599,2]
[406365522,1771807831556,-500.0,0.00016599,2]
[406365523,1771807831566,-500.0,0.00016599,2]
[406365524,1771807831576,-342.12518932,0.00016599,2]
[406365525,1771807831585,-17682.83092677,0.000166,2]
[406365526,1771807831598,-10644.78291349,0.000166,2]
[406365527,1771807831609,-915.50478277,0.000166,2]
[406365528,1771807831621,-1692.52728425,0.000166,2]
[406365529,1771807831633,-687.75,0.000166,2]
[406365557,1771807839795,-3468376.60409272,0.000166,2]
[406365558,1771807839807,-2500.0,0.000166,2]